fUST/lending_fUST_20250718
["ID","MTS","AMOUNT","RATE_DAILY","PERIOD"]
[372904636,1752798645063,-460.0,0.00019726,2]
[372904637,1752798645073,-460.0,0.00019726,2]
[372904638,1752798645083,-460.0,0.00019726,2]
[372904639,1752798645091,-2191.97,0.00019726,2]
[372904640,1752798645101,-500.0,0.00019757,2]
[372904641,1752798645113,-902.48014611,0.00019879,2]
[372904642,1752798645122,-500.0,0.00019921,2]
[372904643,1752798645132,-500.0,0.00019921,2]
[372904644,1752798645141,-500.0,0.00019921,2]
[372904645,1752798645152,-1000.0,0.00019921,2]
[372904646,1752798645161,-500.0,0.00019973,2]
[372904647,1752798645171,-643.78665454,0.00019973,2]
[372904648,1752798645181,-500.0,0.00019973,2]
[372904649,1752798645188,-500.0,0.00019973,2]
[372904650,1752798645196,-370.80328516,0.00019973,2]
[372904651,1752798645203,-246254.89233106,0.00019989,2]
[372904652,1752798645213,-233.882407,0.00019989,2]
[372904653,1752798645222,-607.0,0.0002,2]
[372904654,1752798645231,-29513.75370338,0.0002,14]
[372904655,1752798645240,-460.0,0.0002,2]
[372904656,1752798645249,-2019.38617656,0.0002,2]
[372904657,1752798645258,-1073.82,0.0002,2]
[372904658,1752798645268,-1365.5,0.0002,2]
[372904659,1752798645277,-1658.65,0.0002,2]
[372904660,1752798645286,-671.81,0.0002,2]
[372904661,1752798645295,-460.0,0.0002,2]
[372904662,1752798645306,-460.0,0.0002,2]
[372904663,1752798645315,-460.0,0.0002,2]
[372904664,1752798645324,-1009.31,0.0002,2]
[372904665,1752798645334,-460.0,0.0002,2]
[372904666,1752798645343,-1119.69,0.0002,2]
[372904667,1752798645351,-1811.78,0.0002,2]
[372904668,1752798645360,-987.27,0.0002,2]
[372904669,1752798645369,-6159.16119646,0.0002,2]
[372904670,1752798645377,-584.21,0.0002,2]
[372904671,1752798645386,-460.0,0.0002,2]
[372904672,1752798645396,-460.0,0.0002,2]
[372904673,1752798645406,-3190.8,0.0002,2]
[372904674,1752798645416,-844.15,0.0002,2]
[372904675,1752798645425,-1001.67,0.0002,2]
[372904676,1752798645435,-792.58,0.0002,2]
[372904677,1752798645444,-1053.41,0.0002,2]
[372904678,1752798645454,-460.0,0.0002,2]
[372904679,1752798645464,-460.0,0.0002,2]
[372904680,1752798645473,-427.4368279,0.0002,2]
[372904681,1752798645483,-460.0,0.0002,2]
[372904683,1752798645493,-2191.97,0.0002,2]
[372904685,1752798645502,-500.0,0.00020031,2]
[372904687,1752798645513,-332.71816,0.00020187,2]
[372904689,1752798645522,-303.55845171,0.00020273,2]
[372904691,1752798645532,-460.0,0.00020273,2]
[372904693,1752798645542,-1073.82,0.00020273,2]
[372904695,1752798645551,-1365.5,0.00020273,2]
[372904697,1752798645562,-1658.65,0.00020273,2]
[372904699,1752798645571,-671.81,0.00020273,2]
[372904702,1752798645581,-460.0,0.00020273,2]
[372904703,1752798645590,-460.0,0.00020273,2]
[372904704,1752798645600,-460.0,0.00020273,2]
[372904706,1752798645610,-1009.31,0.00020273,2]
[372904707,1752798645619,-460.0,0.00020273,2]
[372904708,1752798645629,-1119.69,0.00020273,2]
[372904709,1752798645639,-1811.78,0.00020273,2]
[372904710,1752798645648,-987.27,0.00020273,2]
[372904711,1752798645658,-460.0,0.00020273,2]
[372904712,1752798645668,-460.0,0.00020273,2]
[372904713,1752798645678,-3190.8,0.00020273,2]
[372904714,1752798645688,-844.15,0.00020273,2]
[372904715,1752798645697,-1001.67,0.00020273,2]
[372904716,1752798645706,-792.58,0.00020273,2]
[372904717,1752798645715,-1053.41,0.00020273,2]
[372904718,1752798645726,-460.0,0.00020273,2]
[372904719,1752798645735,-460.0,0.00020273,2]
[372904720,1752798645744,-165.84,0.00020273,2]
[372904721,1752798645753,-2191.97,0.00020273,2]
[372904722,1752798645762,-607.0,0.00020274,2]
[372904723,1752798645771,-500.0,0.00020305,2]
[372904725,1752798645780,-151.0,0.00020547,2]
[372904727,1752798645789,-151.0,0.00020547,2]
[372904729,1752798645798,-460.0,0.00020547,2]
[372904731,1752798645810,-1073.82,0.00020547,2]
[372904732,1752798645819,-1365.5,0.00020547,2]
[372904733,1752798645829,-1658.65,0.00020547,2]
[372904734,1752798645838,-671.81,0.00020547,2]
[372904735,1752798645847,-460.0,0.00020547,2]
[372904736,1752798645857,-460.0,0.00020547,2]
[372904737,1752798645865,-460.0,0.00020547,2]
[372904739,1752798645875,-1009.31,0.00020547,2]
[372904741,1752798645884,-460.0,0.00020547,2]
[372904743,1752798645893,-1119.69,0.00020547,2]
[372904745,1752798645903,-1811.78,0.00020547,2]
[372904747,1752798645912,-987.27,0.00020547,2]
[372904748,1752798645922,-460.0,0.00020547,2]
[372904749,1752798645931,-460.0,0.00020547,2]
[372904751,1752798645941,-3190.8,0.00020547,2]
[372904753,1752798645950,-844.15,0.00020547,2]
[372904755,1752798645960,-1001.67,0.00020547,2]
[372904757,1752798645970,-792.58,0.00020547,2]
[372904759,1752798645979,-1053.41,0.00020547,2]
[372904761,1752798645988,-178.26,0.00020547,2]
[372904763,1752798645998,-460.0,0.00020547,2]
[372904768,1752798646033,-2191.97,0.00020547,2]
[372904770,1752798646043,-607.0,0.00020548,2]
[372904772,1752798646054,-500.0,0.00020579,2]
[372904774,1752798646063,-608.26729648,0.00020656,2]
[372904776,1752798646072,-460.0,0.00020821,2]
[372904778,1752798646081,-469.99040439,0.00020821,2]
[372904789,1752798646174,-388.12915736,0.00018356,2]
[372904803,1752798646294,-71.87084264,0.00018356,2]
[372904805,1752798646305,-460.0,0.0001863,2]
[372904807,1752798646314,-460.0,0.00018904,2]
[372904809,1752798646323,-460.0,0.00019178,2]
[372904811,1752798646331,-460.0,0.00019452,2]
[372904813,1752798646340,-460.0,0.00019726,2]
[372904815,1752798646349,-460.0,0.0002,2]
[372904817,1752798646358,-460.0,0.00020273,2]
[372904819,1752798646367,-603.82959561,0.00020821,2]
[372904821,1752798646375,-547.89205025,0.00020821,2]
[372904823,1752798646384,-817.60794975,0.00020821,2]
[372904825,1752798646392,-1658.65,0.00020821,2]
[372904827,1752798646401,-671.81,0.00020821,2]
[372904829,1752798646408,-425.23205025,0.00020821,2]
[372904863,1752798646690,-460.0,0.00020547,2]
[372904864,1752798646699,-34.76794975,0.00020821,2]
[372904865,1752798646707,-437.87,0.00020821,2]
[372904866,1752798646714,-353.21205025,0.00020821,2]
[372904867,1752798646885,-106.78794975,0.00020821,2]
[372904868,1752798646896,-1009.31,0.00020821,2]
[372904869,1752798646905,-132.03141921,0.00020821,2]
[372904870,1752798741670,1187.23968863,0.00016056,2]
[372904871,1752798741694,23712.76031137,0.00016056,2]
[372904873,1752798934842,200.0,0.00019,30]
[372904876,1752799544082,-160.0,0.00016422,2]
[372904877,1752799544104,-440.76393697,0.00016424,2]
[372904878,1752799544124,-300.0,0.00016436,2]
[372904879,1752799544144,-16.14178463,0.00016436,2]
[372904881,1752799759704,16287.23968863,0.00015593,2]
[372904882,1752799759728,8612.76031137,0.00015593,2]
[372904883,1752799768196,-295.96,0.00016338,2]
[372904910,1752799832084,-39.46295959,0.00016338,2]
[372904912,1752799832094,-1200.0,0.00016435,2]
[372904914,1752799832104,-300.0,0.00016436,2]
[372904916,1752799832114,-300.0,0.00016436,2]
[372904918,1752799832124,-300.0,0.00016436,2]
[372904920,1752799832133,-191.5382276,0.00016437,2]
[372904922,1752799832142,-184.54689713,0.00016437,2]
[372904924,1752799832151,-158.62697922,0.00016437,2]
[372904926,1752799832160,-241.22202868,0.00016437,2]
[372904927,1752799832170,-300.0,0.00016437,2]
[372904930,1752799832180,-597.62802116,0.00016438,2]
[372904932,1752799832189,-460.0,0.00016438,2]
[372904934,1752799832199,-460.0,0.00016438,2]
[372904936,1752799832208,-460.0,0.00016438,2]
[372904938,1752799832217,-460.0,0.00016438,2]
[372904940,1752799832226,-460.0,0.00016438,2]
[372904942,1752799832235,-460.0,0.00016438,2]
[372904943,1752799832244,-460.0,0.00016438,2]
[372904945,1752799832254,-267.97551293,0.00016438,2]
[372904947,1752799832263,-460.0,0.00016438,2]
[372904948,1752799832273,-340.35743034,0.00016438,2]
[372904951,1752799832282,-40.62691747,0.00016438,2]
[372904954,1752799832297,-419.37308253,0.00016438,2]
[372904956,1752799832307,-460.0,0.00016438,2]
[372904958,1752799832317,-460.0,0.00016438,2]
[372904960,1752799832326,-460.0,0.00016438,2]
[372904962,1752799832336,-460.0,0.00016438,2]
[372904964,1752799832346,-460.0,0.00016438,2]
[372904966,1752799832355,-460.0,0.00016438,2]
[372904968,1752799832365,-460.0,0.00016438,2]
[372904970,1752799832374,-460.0,0.00016438,2]
[372904972,1752799832383,-460.0,0.00016438,2]
[372904974,1752799832393,-460.0,0.00016438,2]
[372904976,1752799832402,-460.0,0.00016438,2]
[372904978,1752799832411,-460.0,0.00016438,2]
[372904980,1752799832421,-460.0,0.00016438,2]
[372904982,1752799832430,-460.0,0.00016438,2]
[372904984,1752799832439,-530.22624832,0.00016438,2]
[372904986,1752799832452,-460.0,0.00016438,2]
[372904988,1752799832462,-460.0,0.00016438,2]
[372904990,1752799832471,-547.75756254,0.00016438,2]
[372904992,1752799832481,-460.0,0.00016438,2]
[372904994,1752799832490,-238.77915546,0.00016438,2]
[372904996,1752799832500,-460.0,0.00016438,2]
[372904998,1752799832509,-483.3,0.00016438,2]
[372905000,1752799832519,-460.0,0.00016438,2]
[372905003,1752799832532,-460.0,0.00016438,2]
[372905004,1752799832543,-460.0,0.00016438,2]
[372905006,1752799832552,-277.33348088,0.00016438,2]
[372905009,1752799832565,-182.66651912,0.00016438,2]
[372905011,1752799832575,-460.0,0.00016438,2]
[372905013,1752799832584,-460.0,0.00016438,2]
[372905015,1752799832593,-460.0,0.00016438,2]
[372905017,1752799832602,-460.0,0.00016438,2]
[372905018,1752799832612,-198.70225398,0.00016438,2]
[372905019,1752799832624,-261.29774602,0.00016438,2]
[372905020,1752799832634,-460.0,0.00016438,2]
[372905021,1752799832643,-460.0,0.00016438,2]
[372905022,1752799832653,-460.0,0.00016438,2]
[372905023,1752799832663,-435.24,0.00016438,2]
[372905024,1752799832672,-585.44506512,0.00016438,2]
[372905025,1752799832681,-460.0,0.00016438,2]
[372905026,1752799832691,-460.0,0.00016438,2]
[372905027,1752799832701,-460.0,0.00016438,2]
[372905028,1752799832711,-460.0,0.00016438,2]
[372905029,1752799832721,-1075.73,0.00016438,2]
[372905030,1752799832730,-460.0,0.00016438,2]
[372905031,1752799832740,-460.0,0.00016438,2]
[372905032,1752799832750,-460.0,0.00016438,2]
[372905033,1752799832759,-460.0,0.00016438,2]
[372905034,1752799832769,-460.0,0.00016438,2]
[372905035,1752799832779,-241.48933732,0.00016438,2]
[372905036,1752799832788,-460.0,0.00016438,2]
[372905037,1752799832800,-285.73,0.00016438,2]
[372905038,1752799832810,-460.0,0.00016438,2]
[372905039,1752799832820,-227.50830199,0.00016438,2]
[372905040,1752799832830,-460.0,0.00016438,2]
[372905041,1752799832839,-460.0,0.00016438,2]
[372905042,1752799832849,-682.28062317,0.00016438,2]
[372905069,1752799838163,-1279.98937683,0.00016438,2]
[372905071,1752799838172,-460.0,0.00016438,2]
[372905073,1752799838182,-460.0,0.00016438,2]
[372905075,1752799838191,-460.0,0.00016438,2]
[372905077,1752799838200,-460.0,0.00016438,2]
[372905079,1752799838210,-460.0,0.00016438,2]
[372905081,1752799838220,-2067.61,0.00016438,2]
[372905083,1752799838229,-460.0,0.00016438,2]
[372905085,1752799838238,-442.52,0.00016438,2]
[372905088,1752799838248,-460.0,0.00016438,2]
[372905091,1752799838258,-460.0,0.00016438,2]
[372905093,1752799838267,-460.0,0.00016438,2]
[372905095,1752799838277,-460.0,0.00016438,2]
[372905097,1752799838287,-463.89,0.00016438,2]
[372905099,1752799838298,-460.0,0.00016438,2]
[372905101,1752799838308,-180.64724004,0.00016438,2]
[372905103,1752799838320,-909.96275996,0.00016438,2]
[372905106,1752799838331,-460.0,0.00016438,2]
[372905108,1752799838341,-497.83,0.00016438,2]
[372905110,1752799838350,-460.0,0.00016438,2]
[372905112,1752799838361,-460.0,0.00016438,2]
[372905114,1752799838370,-460.0,0.00016438,2]
[372905116,1752799838380,-460.0,0.00016438,2]
[372905118,1752799838389,-460.0,0.00016438,2]
[372905120,1752799838399,-401.81494723,0.00016438,2]
[372905122,1752799838409,-460.0,0.00016438,2]
[372905124,1752799838418,-460.0,0.00016438,2]
[372905126,1752799838428,-460.0,0.00016438,2]
[372905127,1752799838437,-460.0,0.00016438,2]
[372905128,1752799838446,-1291.63,0.00016438,2]
[372905129,1752799838462,-460.0,0.00016438,2]
[372905130,1752799838471,-460.0,0.00016438,2]
[372905131,1752799838480,-460.0,0.00016438,2]
[372905132,1752799838491,-2043.22,0.00016438,2]
[372905133,1752799838500,-460.0,0.00016438,2]
[372905134,1752799838510,-460.0,0.00016438,2]
[372905135,1752799838519,-460.0,0.00016438,2]
[372905136,1752799838536,-460.0,0.00016438,2]
[372905137,1752799838553,-460.0,0.00016438,2]
[372905138,1752799838563,-460.0,0.00016438,2]
[372905139,1752799838572,-460.0,0.00016438,2]
[372905140,1752799838582,-460.0,0.00016438,2]
[372905141,1752799838593,-460.0,0.00016438,2]
[372905142,1752799838603,-460.0,0.00016438,2]
[372905143,1752799838613,-532.87,0.00016438,2]
[372905144,1752799838622,-460.0,0.00016438,2]
[372905145,1752799838632,-460.0,0.00016438,2]
[372905146,1752799838642,-460.0,0.00016438,2]
[372905147,1752799838652,-460.0,0.00016438,2]
[372905148,1752799838661,-460.0,0.00016438,2]
[372905149,1752799838671,-813.8,0.00016438,2]
[372905150,1752799838681,-460.0,0.00016438,2]
[372905151,1752799838691,-460.0,0.00016438,2]
[372905152,1752799838700,-460.0,0.00016438,2]
[372905153,1752799838710,-460.0,0.00016438,2]
[372905154,1752799838720,-460.0,0.00016438,2]
[372905155,1752799838730,-460.0,0.00016438,2]
[372905156,1752799838906,-460.0,0.00016438,2]
[372905157,1752799838920,-460.0,0.00016438,2]
[372905158,1752799838930,-460.0,0.00016438,2]
[372905159,1752799838939,-460.0,0.00016438,2]
[372905160,1752799838949,-764.54,0.00016438,2]
[372905161,1752799838958,-460.0,0.00016438,2]
[372905162,1752799838967,-1113.33,0.00016611,2]
[372905163,1752799838976,-715.4,0.00016611,2]
[372905164,1752799838986,-4068.00000001,0.00016612,2]
[372905165,1752799838995,-500.0,0.0001671,2]
[372905166,1752799839004,-604.36787539,0.0001671,2]
[372905167,1752799839014,-500.0,0.0001671,2]
[372905168,1752799839023,-500.0,0.0001671,2]
[372905169,1752799839033,-500.0,0.0001671,2]
[372905170,1752799839045,-1005.51,0.00016711,2]
[372905171,1752799839054,-658.62,0.00016711,2]
[372905172,1752799839064,-460.0,0.00016711,2]
[372905173,1752799839074,-1062.63,0.00016711,2]
[372905174,1752799839083,-3377.99,0.00016711,2]
[372905175,1752799839093,-460.0,0.00016712,2]
[372905176,1752799839102,-460.0,0.00016712,2]
[372905177,1752799839111,-460.0,0.00016712,2]
[372905178,1752799839121,-414.72808135,0.00016712,2]
[372905179,1752799839131,-569.54,0.00016712,2]
[372905180,1752799839140,-242.21955512,0.00016712,2]
[372905181,1752799839150,-460.0,0.00016712,2]
[372905182,1752799839159,-460.0,0.00016712,2]
[372905183,1752799839169,-460.0,0.00016712,2]
[372905184,1752799839179,-483.3,0.00016712,2]
[372905185,1752799839189,-460.0,0.00016712,2]
[372905186,1752799839198,-460.0,0.00016712,2]
[372905187,1752799839208,-460.0,0.00016712,2]
[372905188,1752799839217,-460.0,0.00016712,2]
[372905189,1752799839227,-369.47235491,0.00016712,2]
[372905190,1752799839236,-460.0,0.00016712,2]
[372905191,1752799839245,-460.0,0.00016712,2]
[372905192,1752799839255,-460.0,0.00016712,2]
[372905193,1752799839264,-207.06735334,0.00016712,2]
[372905194,1752799839274,-460.0,0.00016712,2]
[372905195,1752799839283,-1075.73,0.00016712,2]
[372905196,1752799839293,-539.65977616,0.00016712,2]
[372905197,1752799839304,-168.88481711,0.00016712,2]
[372905198,1752799839314,-460.0,0.00016712,2]
[372905199,1752799839324,-460.0,0.00016712,2]
[372905200,1752799839333,-460.0,0.00016712,2]
[372905201,1752799839342,-460.0,0.00016712,2]
[372905202,1752799839352,-1962.27,0.00016712,2]
[372905203,1752799839362,-460.0,0.00016712,2]
[372905204,1752799839371,-2067.61,0.00016712,2]
[372905205,1752799839381,-460.0,0.00016712,2]
[372905206,1752799839391,-460.0,0.00016712,2]
[372905207,1752799839401,-460.0,0.00016712,2]
[372905208,1752799839410,-463.89,0.00016712,2]
[372905209,1752799839419,-460.0,0.00016712,2]
[372905210,1752799839429,-1090.61,0.00016712,2]
[372905211,1752799839438,-460.0,0.00016712,2]
[372905212,1752799839451,-497.83,0.00016712,2]
[372905213,1752799839461,-460.0,0.00016712,2]
[372905214,1752799839470,-460.0,0.00016712,2]
[372905215,1752799839480,-460.0,0.00016712,2]
[372905216,1752799839490,-206.7,0.00016712,2]
[372905217,1752799839499,-460.0,0.00016712,2]
[372905218,1752799839509,-460.58,0.00016712,2]
[372905219,1752799839519,-460.0,0.00016712,2]
[372905220,1752799839531,-1291.63,0.00016712,2]
[372905221,1752799839540,-460.0,0.00016712,2]
[372905222,1752799839558,-460.0,0.00016712,2]
[372905223,1752799839567,-2043.22,0.00016712,2]
[372905224,1752799839577,-460.0,0.00016712,2]
[372905225,1752799839587,-460.0,0.00016712,2]
[372905226,1752799839596,-460.0,0.00016712,2]
[372905227,1752799839606,-238.5,0.00016712,2]
[372905228,1752799839615,-460.0,0.00016712,2]
[372905229,1752799839625,-460.0,0.00016712,2]
[372905230,1752799839635,-532.87,0.00016712,2]
[372905231,1752799839644,-460.0,0.00016712,2]
[372905233,1752799839654,-460.0,0.00016712,2]
[372905234,1752799839664,-460.0,0.00016712,2]
[372905236,1752799839673,-813.8,0.00016712,2]
[372905238,1752799839683,-460.0,0.00016712,2]
[372905240,1752799839693,-460.0,0.00016712,2]
[372905241,1752799839703,-460.0,0.00016712,2]
[372905243,1752799839713,-460.0,0.00016712,2]
[372905245,1752799839723,-460.0,0.00016712,2]
[372905247,1752799839732,-460.0,0.00016712,2]
[372905248,1752799839742,-460.0,0.00016712,2]
[372905250,1752799839751,-764.54,0.00016712,2]
[372905252,1752799839761,-1113.33,0.00016885,2]
[372905253,1752799839771,-715.4,0.00016885,2]
[372905254,1752799839780,-970.89837429,0.00016889,2]
[372905255,1752799839790,-193.58,0.00016976,3]
[372905256,1752799839804,-580.78,0.00016976,3]
[372905257,1752799839813,-1005.51,0.00016985,2]
[372905258,1752799839822,-658.62,0.00016985,2]
[372905259,1752799839832,-460.0,0.00016985,2]
[372905261,1752799839842,-1062.63,0.00016985,2]
[372905263,1752799839852,-3377.99,0.00016985,2]
[372905264,1752799839862,-460.0,0.00016986,2]
[372905267,1752799839872,-460.0,0.00016986,2]
[372905269,1752799839882,-460.0,0.00016986,2]
[372905271,1752799839891,-483.3,0.00016986,2]
[372905273,1752799839901,-460.0,0.00016986,2]
[372905275,1752799839911,-460.0,0.00016986,2]
[372905277,1752799839920,-314.67,0.00016986,2]
[372905279,1752799839929,-460.0,0.00016986,2]
[372905281,1752799839939,-1075.73,0.00016986,2]
[372905283,1752799839948,-460.0,0.00016986,2]
[372905285,1752799839958,-460.0,0.00016986,2]
[372905287,1752799839967,-460.0,0.00016986,2]
[372905289,1752799839976,-460.0,0.00016986,2]
[372905291,1752799839986,-1962.27,0.00016986,2]
[372905293,1752799839995,-460.0,0.00016986,2]
[372905295,1752799840005,-2067.61,0.00016986,2]
[372905297,1752799840015,-460.0,0.00016986,2]
[372905299,1752799840025,-460.0,0.00016986,2]
[372905301,1752799840034,-460.0,0.00016986,2]
[372905303,1752799840043,-463.89,0.00016986,2]
[372905305,1752799840056,-460.0,0.00016986,2]
[372905307,1752799840066,-1090.61,0.00016986,2]
[372905309,1752799840075,-460.0,0.00016986,2]
[372905310,1752799840087,-497.83,0.00016986,2]
[372905313,1752799840097,-258.06424337,0.00016986,2]
[372905315,1752799840106,-460.0,0.00016986,2]
[372905317,1752799840116,-460.0,0.00016986,2]
[372905319,1752799840125,-460.0,0.00016986,2]
[372905321,1752799840135,-460.0,0.00016986,2]
[372905323,1752799840144,-1291.63,0.00016986,2]
[372905325,1752799840154,-460.0,0.00016986,2]
[372905326,1752799840163,-460.0,0.00016986,2]
[372905328,1752799840173,-2043.22,0.00016986,2]
[372905330,1752799840183,-460.0,0.00016986,2]
[372905332,1752799840192,-460.0,0.00016986,2]
[372905334,1752799840202,-460.0,0.00016986,2]
[372905336,1752799840211,-460.0,0.00016986,2]
[372905338,1752799840221,-532.87,0.00016986,2]
[372905340,1752799840231,-460.0,0.00016986,2]
[372905342,1752799840241,-460.0,0.00016986,2]
[372905344,1752799840250,-813.8,0.00016986,2]
[372905346,1752799840259,-460.0,0.00016986,2]
[372905348,1752799840270,-235.06919553,0.00016986,2]
[372905350,1752799840280,-460.0,0.00016986,2]
[372905352,1752799840290,-460.0,0.00016986,2]
[372905354,1752799840303,-460.0,0.00016986,2]
[372905357,1752799840312,-460.0,0.00016986,2]
[372905358,1752799840322,-764.54,0.00016986,2]
[372905361,1752799840332,-500.0,0.00017058,2]
[372905363,1752799840341,-550.00000003,0.00017058,2]
[372905365,1752799840353,-500.0,0.00017068,2]
[372905367,1752799840362,-211.00153815,0.00017113,2]
[372905369,1752799840371,-500.0,0.00017115,2]
[372905371,1752799840380,-504.70318548,0.00017127,2]
[372905373,1752799840390,-1113.33,0.00017159,2]
[372905374,1752799840399,-715.4,0.00017159,2]
[372905376,1752799840408,-1005.51,0.00017259,2]
[372905378,1752799840418,-658.62,0.00017259,2]
[372905380,1752799840427,-460.0,0.00017259,2]
[372905381,1752799840437,-1062.63,0.00017259,2]
[372905383,1752799840447,-3377.99,0.00017259,2]
[372905385,1752799840459,-460.0,0.0001726,2]
[372905386,1752799840471,-460.0,0.0001726,2]
[372905387,1752799840480,-460.0,0.0001726,2]
[372905388,1752799840489,-483.3,0.0001726,2]
[372905389,1752799840500,-460.0,0.0001726,2]
[372905390,1752799840510,-460.0,0.0001726,2]
[372905391,1752799840519,-460.0,0.0001726,2]
[372905392,1752799840529,-1075.73,0.0001726,2]
[372905393,1752799840539,-460.0,0.0001726,2]
[372905394,1752799840551,-460.0,0.0001726,2]
[372905395,1752799840561,-460.0,0.0001726,2]
[372905396,1752799840571,-460.0,0.0001726,2]
[372905397,1752799840582,-1962.27,0.0001726,2]
[372905398,1752799840592,-460.0,0.0001726,2]
[372905399,1752799840602,-2067.61,0.0001726,2]
[372905400,1752799840612,-460.0,0.0001726,2]
[372905401,1752799840622,-460.0,0.0001726,2]
[372905402,1752799840631,-463.89,0.0001726,2]
[372905403,1752799840641,-551.08,0.0001726,2]
[372905404,1752799840651,-1090.61,0.0001726,2]
[372905405,1752799840660,-460.0,0.0001726,2]
[372905406,1752799840670,-497.83,0.0001726,2]
[372905407,1752799840680,-460.0,0.0001726,2]
[372905408,1752799840690,-460.0,0.0001726,2]
[372905409,1752799840699,-460.0,0.0001726,2]
[372905410,1752799840709,-460.0,0.0001726,2]
[372905411,1752799840719,-1291.63,0.0001726,2]
[372905412,1752799840728,-460.0,0.0001726,2]
[372905413,1752799840738,-460.0,0.0001726,2]
[372905414,1752799840747,-2043.22,0.0001726,2]
[372905415,1752799840757,-460.0,0.0001726,2]
[372905416,1752799840767,-460.0,0.0001726,2]
[372905417,1752799840776,-460.0,0.0001726,2]
[372905418,1752799840786,-460.0,0.0001726,2]
[372905419,1752799840799,-532.87,0.0001726,2]
[372905420,1752799840808,-460.0,0.0001726,2]
[372905421,1752799840818,-460.0,0.0001726,2]
[372905422,1752799840827,-813.8,0.0001726,2]
[372905423,1752799840837,-460.0,0.0001726,2]
[372905424,1752799840846,-460.0,0.0001726,2]
[372905425,1752799840856,-460.0,0.0001726,2]
[372905426,1752799840865,-532.68,0.0001726,2]
[372905427,1752799840875,-460.0,0.0001726,2]
[372905428,1752799840884,-764.54,0.0001726,2]
[372905429,1752799840894,-375.77260743,0.00017267,2]
[372905430,1752799840903,-500.0,0.00017367,2]
[372905431,1752799840912,-1113.33,0.00017433,2]
[372905432,1752799840922,-715.4,0.00017433,2]
[372905433,1752799840932,-1005.51,0.00017533,2]
[372905434,1752799840941,-658.62,0.00017533,2]
[372905435,1752799840951,-460.0,0.00017533,2]
[372905436,1752799840960,-1062.63,0.00017533,2]
[372905437,1752799840970,-3377.99,0.00017533,2]
[372905438,1752799840980,-398.35174077,0.00017534,2]
[372905439,1752799840989,-460.0,0.00017534,2]
[372905440,1752799840999,-460.0,0.00017534,2]
[372905441,1752799841008,-483.3,0.00017534,2]
[372905442,1752799841017,-460.0,0.00017534,2]
[372905443,1752799841027,-460.0,0.00017534,2]
[372905444,1752799841036,-1075.73,0.00017534,2]
[372905445,1752799841049,-460.0,0.00017534,2]
[372905446,1752799841059,-460.0,0.00017534,2]
[372905447,1752799841068,-460.0,0.00017534,2]
[372905448,1752799841078,-460.0,0.00017534,2]
[372905449,1752799841088,-1962.27,0.00017534,2]
[372905450,1752799841098,-279.67,0.00017534,2]
[372905451,1752799841108,-2067.61,0.00017534,2]
[372905452,1752799841118,-460.0,0.00017534,2]